fUSD/lending_fUSD_20251130
["ID","MTS","AMOUNT","RATE_DAILY","PERIOD"]
[395161199,1764495394542,10000.01,0.000125,2]
[395161200,1764495394574,10000.01,0.000125,2]
[395161201,1764495394605,10000.01,0.000125,2]
[395161202,1764495394639,10000.01,0.000125,2]
[395161203,1764495394670,10000.01,0.000125,2]
[395161204,1764495394701,10000.01,0.000125,2]
[395161205,1764495394731,10000.01,0.000125,2]
[395161206,1764495394761,10000.01,0.000125,2]
[395161207,1764495401051,-287.47606149,0.000125,2]
[395161208,1764495405116,-178.80027896,0.000125,2]
[395161210,1764495407595,-500.0,0.000125,2]
[395161211,1764495411775,-254.7146204,0.000125,2]
[395161212,1764495412801,-10000.01,0.000125,2]
[395161213,1764495412897,-10000.01,0.000125,2]
[395161214,1764495414491,-10000.01,0.000125,2]
[395161215,1764495414504,-10000.01,0.000125,2]
[395161216,1764495414518,-10000.01,0.000125,2]
[395161217,1764495414531,-10000.01,0.000125,2]
[395161218,1764495414544,-10000.01,0.000125,2]
[395161219,1764495414557,-10000.01,0.000125,2]
[395161220,1764495414594,-885.93010127,0.000125,2]
[395161221,1764495453921,-160.98795251,0.000125,2]
[395161223,1764495456631,-357.82898019,0.000125,2]
[395161224,1764495459872,-469.06544911,0.000125,2]
[395161225,1764495459894,-151.30915089,0.000125,2]
[395161226,1764495460988,-0.86221441,0.000125,2]
[395161318,1764495579418,-2500.0,0.00012631,2]
[395161319,1764495579438,-401.5100078,0.00012631,2]
[395161320,1764495579469,-98.4899922,0.00012631,2]
[395161321,1764495585082,-2598.4899922,0.00012631,2]
[395161322,1764495585251,-401.5100078,0.00012631,2]
[395161323,1764495613774,-300.0,0.0001263,2]
[395161324,1764495627343,-598.4899922,0.0001263,2]
[395161325,1764495628091,-598.4899922,0.0001263,2]
[395161326,1764495628934,-3.0200156,0.0001263,2]
[395161327,1764495628970,-592.449961,0.00012631,2]
[395161328,1764495630479,-598.4899922,0.00012631,2]
[395161329,1764495630992,-598.4899922,0.00012631,2]
[395161330,1764495631211,-598.4899922,0.00012631,2]
[395161331,1764495643860,-598.4899922,0.00012631,2]
[395161332,1764495647186,-598.4899922,0.00012631,2]
[395161333,1764495649387,-29.03963217,0.00012631,2]
[395161334,1764495649420,-215.85912562,0.00012631,2]
[395161335,1764495649454,-215.67630721,0.00012631,2]
[395161337,1764495653622,-598.4899922,0.00012683,2]
[395161338,1764495659890,-598.4899922,0.00012628,2]
[395161339,1764495660384,-598.4899922,0.00012628,2]
[395161351,1764495857298,-194.15218628,0.00012623,2]
[395161352,1764495858886,-288.79778732,0.00012623,2]
[395161353,1764495861544,-348.44471626,0.00012623,2]
[395161354,1764495864988,-450.19598352,0.00012623,2]
[395161355,1764495866568,-198.98171055,0.00012623,2]
[395161356,1764495868092,-500.0,0.00012623,2]
[395161357,1764495871865,-260.88026284,0.00012623,2]
[395161358,1764495873826,-334.30826152,0.00012623,2]
[395161359,1764495875569,-281.72570416,0.00012623,2]
[395161362,1764495878749,-213.31346868,0.00012623,2]
[395161363,1764495880370,-254.9048155,0.00012623,2]
[395161364,1764495883282,-158.21882185,0.00012623,2]
[395161365,1764495885646,-181.39330656,0.00012623,2]
[395161366,1764495887147,-268.60669344,0.00012623,2]
[395161371,1764495964299,-394.41304336,0.00012623,2]
[395161372,1764495967153,-500.0,0.00012623,2]
[395161373,1764495968763,-294.77285261,0.00012623,2]
[395161374,1764495970799,-299.36204804,0.00012623,2]
[395161375,1764495972343,-324.44683813,0.00012623,2]
[395161376,1764495979333,555.0,0.00025,120]
[395161377,1764495994458,-184.82968071,0.00012623,2]
[395161380,1764495998950,-1427.06751958,0.00012623,2]
[395161386,1764496003515,222.0,0.00025,120]
[395161395,1764496011797,-235.2993,0.00012623,2]
[395161396,1764496017820,222.0,0.00022,30]
[395161471,1764496026836,-686.668,0.00012628,2]
[395161475,1764496029789,522.0,0.00025,120]
[395161481,1764496036770,255.0,0.00025,120]
[395161485,1764496037553,578.20924308,0.00012628,2]
[395161494,1764496044730,-250.0,0.0001263,2]
[395161496,1764496047060,-300.0,0.0001263,2]
[395161497,1764496047082,-5.26950056,0.0001263,2]
[395161499,1764496048618,-290.54606307,0.0001263,2]
[395161503,1764496060764,-904.18443637,0.0001263,2]
[395161504,1764496060793,-150.0,0.0001263,2]
[395161510,1764496073210,1200.0,0.0001263,2]
[395161512,1764496078777,-2500.0,0.00012631,2]
[395161513,1764496078804,-500.0,0.00012631,2]
[395161514,1764496078832,-500.0,0.00012631,2]
[395161515,1764496078858,-500.0,0.00012631,2]
[395161516,1764496078884,-500.0,0.00012631,2]
[395161517,1764496078910,-500.0,0.00012631,2]
[395161518,1764496078969,-500.0,0.00012631,2]
[395161519,1764496078996,-500.0,0.00012631,2]
[395161520,1764496079023,-500.0,0.00012631,2]
[395161521,1764496079049,-500.0,0.00012631,2]
[395161522,1764496079076,-500.0,0.00012631,2]
[395161523,1764496079104,-500.0,0.00012631,2]
[395161524,1764496079132,-500.0,0.00012631,2]
[395161525,1764496079159,-500.0,0.00012631,2]
[395161526,1764496079186,-500.0,0.00012631,2]
[395161527,1764496079215,-500.0,0.00012631,2]
[395161528,1764496079266,-500.0,0.00012631,2]
[395161529,1764496079294,-197.92719606,0.00012631,2]
[395161530,1764496079917,-1877.54045393,0.00012631,2]
[395161531,1764496081269,300.0,0.0001263,2]
[395161538,1764496095968,-4525.00514485,0.00012631,2]
[395161539,1764496095996,-215.85912561,0.00012631,2]
[395161540,1764496097765,518.28145908,0.00012631,2]
[395161541,1764496097787,481.71854092,0.00012631,2]
[395161542,1764496106038,666.0,0.00025,120]
[395161543,1764496106376,9518.29145908,0.00012623,2]
[395161544,1764496106401,10000.01,0.00012623,2]
[395161545,1764496106425,10000.01,0.00012623,2]
[395161546,1764496106447,10000.01,0.00012623,2]
[395161547,1764496106470,10000.01,0.00012623,2]
[395161548,1764496106496,10000.01,0.00012623,2]
[395161549,1764496106519,10000.01,0.00012623,2]
[395161551,1764496106542,10000.01,0.00012623,2]
[395161554,1764496114647,444.0,0.00025,120]
[395161573,1764496164243,-151.0,0.0001262,2]
[395161574,1764496164278,-500.0,0.00012622,2]
[395161575,1764496164312,-500.0,0.00012622,2]
[395161576,1764496164346,-628.80011146,0.00012622,2]
[395161577,1764496164380,-500.0,0.00012622,2]
[395161578,1764496164414,-500.0,0.00012622,2]
[395161579,1764496164453,-500.0,0.00012622,2]
[395161580,1764496164488,-500.0,0.00012622,2]
[395161581,1764496164522,-500.0,0.00012622,2]
[395161582,1764496164556,-500.0,0.00012622,2]
[395161583,1764496164776,-500.0,0.00012622,2]
[395161584,1764496164822,-500.0,0.00012622,2]
[395161585,1764496164857,-500.0,0.00012622,2]
[395161586,1764496164889,-500.0,0.00012622,2]
[395161587,1764496164921,-500.0,0.00012622,2]
[395161588,1764496164954,-500.0,0.00012622,2]
[395161589,1764496164987,-500.0,0.00012622,2]
[395161590,1764496165020,-500.0,0.00012622,2]
[395161591,1764496165051,-531.83198907,0.00012622,2]
[395161592,1764496165084,-436.34602186,0.00012622,2]
[395161593,1764496165203,-63.65397814,0.00012622,2]
[395161594,1764496165236,-500.0,0.00012622,2]
[395161595,1764496165268,-500.0,0.00012622,2]
[395161596,1764496165300,-500.0,0.00012622,2]
[395161597,1764496165332,-500.0,0.00012622,2]
[395161598,1764496165365,-500.0,0.00012622,2]
[395161599,1764496165396,-500.0,0.00012622,2]
[395161600,1764496165427,-500.0,0.00012622,2]
[395161601,1764496165457,-500.0,0.00012622,2]
[395161602,1764496165487,-500.0,0.00012622,2]
[395161603,1764496165518,-372.70204372,0.00012622,2]
[395161604,1764496167980,-188.7167688,0.00012531,2]
[395161605,1764496168013,-127.29795628,0.00012622,2]
[395161606,1764496168044,-500.0,0.00012622,2]
[395161607,1764496168076,-500.0,0.00012622,2]
[395161608,1764496168108,-500.0,0.00012622,2]
[395161609,1764496168140,-500.0,0.00012622,2]
[395161610,1764496168172,-500.0,0.00012622,2]
[395161611,1764496168208,-500.0,0.00012622,2]
[395161612,1764496168241,-500.0,0.00012622,2]
[395161613,1764496168272,-500.0,0.00012622,2]
[395161614,1764496168304,-500.0,0.00012622,2]
[395161616,1764496173946,-500.0,0.00012622,2]
[395161617,1764496173978,-500.0,0.00012622,2]
[395161618,1764496174006,-671.39824189,0.00012623,2]
[395161619,1764496199636,-5060.0850754,0.00012623,2]
[395161620,1764496206747,-1200.0,0.00012622,2]
[395161621,1764496206784,-300.0,0.00012622,2]
[395161622,1764496206851,-7000.01,0.00012623,2]
[395161623,1764496224549,150.0,0.00011918,2]
[395161626,1764496232180,-307.26,0.00012622,2]
[395161627,1764496232204,-226.30005638,0.00012622,2]
[395161628,1764496232214,-479.41175102,0.00012622,2]
[395161629,1764496232224,-533.56005638,0.00012622,2]
[395161630,1764496232233,-13.29667644,0.00012622,2]
[395161638,1764496239321,-186.92975221,0.00012622,2]
[395161639,1764496239332,-533.56005638,0.00012622,2]
[395161640,1764496239341,-310.05866281,0.00012622,2]
[395161641,1764496239350,-533.56005638,0.00012622,2]
[395161642,1764496239358,-533.56005638,0.00012622,2]
[395161643,1764496239367,-533.56005638,0.00012622,2]
[395161644,1764496239376,-533.56005638,0.00012622,2]
[395161645,1764496239385,-533.56005638,0.00012622,2]
[395161646,1764496239395,-533.56005638,0.00012622,2]
[395161647,1764496239403,-533.56005638,0.00012622,2]
[395161648,1764496239413,-533.56005638,0.00012622,2]
[395161649,1764496239422,-533.56005638,0.00012622,2]
[395161650,1764496239431,-533.56005638,0.00012622,2]
[395161651,1764496239440,-533.56005638,0.00012622,2]
[395161652,1764496239449,-533.56005638,0.00012622,2]
[395161653,1764496239459,-533.56005638,0.00012622,2]
[395161654,1764496239468,-533.56005638,0.00012622,2]
[395161655,1764496239477,-533.56005638,0.00012622,2]
[395161656,1764496239486,-533.56005638,0.00012622,2]
[395161657,1764496239495,-533.56005638,0.00012622,2]
[395161658,1764496239504,-533.56005638,0.00012622,2]
[395161659,1764496239515,-533.56005638,0.00012622,2]
[395161660,1764496239524,-533.56005638,0.00012622,2]
[395161661,1764496239534,-533.56005638,0.00012622,2]
[395161662,1764496239543,-533.56005638,0.00012622,2]
[395161663,1764496239552,-533.56005638,0.00012622,2]
[395161664,1764496239561,-533.56005638,0.00012622,2]
[395161665,1764496239574,-533.56005638,0.00012622,2]
[395161666,1764496239584,-533.56005638,0.00012622,2]
[395161667,1764496239593,-533.56005638,0.00012622,2]
[395161668,1764496239603,-533.56005638,0.00012622,2]
[395161669,1764496239613,-533.56005638,0.00012622,2]
[395161670,1764496239622,-533.56005638,0.00012622,2]
[395161671,1764496239631,-533.56005638,0.00012622,2]
[395161672,1764496239640,-533.56005638,0.00012622,2]
[395161673,1764496239650,-244.52972444,0.00012623,2]
[395161675,1764496240619,-1.7e-07,0.00012623,2]
[395161676,1764496240631,-17836.8808194,0.00012623,2]
[395161677,1764496240643,-329.264996,0.00012623,2]
[395161678,1764496240653,-22869.25,0.00012623,2]
[395161692,1764496243005,-425.3574,0.00012622,2]
[395161693,1764496243014,-233.412594,0.00012623,2]
[395161701,1764496246217,-1901.4032625,0.00012623,2]
[395161702,1764496246237,-13861.54804547,0.00012623,2]
[395161703,1764496246290,-609.90224191,0.00012623,2]
[395161708,1764496246350,-2201.61760569,0.00012623,2]
[395161716,1764496310770,7622.03531048,0.00012523,2]
[395161720,1764496346553,162.1,9.511e-05,2]
[395161721,1764496346751,162.1,0.00010462,2]
[395161722,1764496346936,162.1,0.00011413,2]
[395161723,1764496347132,162.1,0.00012364,2]
[395161724,1764496354673,1579.57468952,0.00012523,2]
[395161725,1764496354695,5382.7705783,0.00012523,2]
[395161726,1764496364114,4617.2394217,0.00011888,2]
[395161727,1764496364135,10000.01,0.00011888,2]
[395161728,1764496364156,6927.3105783,0.00011888,2]
[395161730,1764496374973,250.0,0.00011888,2]
[395161747,1764496448200,161.0,0.000202,30]
[395161749,1764496455620,165.1271727,0.00012523,2]
[395161750,1764496461109,1000.0,0.00012523,2]
[395161757,1764496480989,2500.0,0.00012523,2]
[395161805,1764496548650,2751.0,0.00011951,2]
[395161808,1764496575277,500.0,0.0001252,2]
[395161809,1764496582394,3083.8828273,0.00012523,2]
[395161810,1764496582416,10000.01,0.00012523,2]
[395161811,1764496582439,10000.01,0.00012523,2]
[395161812,1764496582461,10000.01,0.00012523,2]
[395161813,1764496582484,315.4663727,0.00012523,2]
[395161814,1764496636668,483.58,0.00011951,2]
[395161817,1764496652890,-1000.0,0.00012523,2]
[395161818,1764496652921,-2500.0,0.00012523,2]
[395161819,1764496701245,1110.0317982,0.00025,120]
[395161820,1764496715774,-3140.17822064,0.00012523,2]
[395161821,1764496719183,-3719.65355872,0.00012523,2]
[395161822,1764496763614,-500.0,0.00012515,2]
[395161823,1764496767624,-650.85136255,0.00012522,2]
[395161825,1764496769298,-193.59002877,0.00012522,2]
[395161826,1764496770957,-281.76093126,0.00012522,2]
[395161827,1764496773095,-300.0,0.00012522,2]
[395161828,1764496775699,-505.2686431,0.00012522,2]
[395161830,1764496778236,-553.28764392,0.00012522,2]
[395161831,1764496781328,162.45,0.00019178,30]
[395161832,1764496782404,-255.92714014,0.00012522,2]
[395161833,1764496784308,-828.28028163,0.00012522,2]
[395161834,1764496785771,-300.0,0.00012522,2]
[395161835,1764496789333,-424.31960322,0.00012522,2]
[395161836,1764496801345,1200.0,0.00012521,2]
[395161837,1764496801418,300.0,0.00012521,2]
[395161843,1764496840565,500.0,0.00012521,2]
[395161844,1764496840623,500.0,0.00012521,2]
[395161845,1764496840682,500.0,0.00012521,2]
[395161846,1764496840757,500.0,0.00012521,2]
[395161847,1764496840841,500.0,0.00012521,2]
[395161848,1764496840900,500.0,0.00012521,2]
[395161849,1764496840967,500.0,0.00012521,2]
[395161850,1764496841037,500.0,0.00012521,2]
[395161851,1764496841111,500.0,0.00012521,2]
[395161852,1764496841171,500.0,0.00012521,2]
[395161853,1764496841227,500.0,0.00012521,2]
[395161854,1764496841291,500.0,0.00012521,2]
[395161855,1764496841349,500.0,0.00012521,2]
[395161856,1764496841404,500.0,0.00012521,2]
[395161857,1764496841489,500.0,0.00012521,2]
[395161858,1764496841545,500.0,0.00012521,2]
[395161859,1764496841611,500.0,0.00012521,2]
[395161860,1764496841656,0.01,0.00012521,2]
[395161861,1764496841681,499.99,0.00012521,2]
[395161862,1764496841730,500.0,0.00012521,2]
[395161863,1764496841792,500.0,0.00012521,2]
[395161864,1764496841844,500.0,0.00012521,2]
[395161865,1764496842414,500.0,0.00012521,2]
[395161866,1764496842458,500.0,0.00012521,2]
[395161867,1764496842526,500.0,0.00012521,2]
[395161868,1764496842591,500.0,0.00012521,2]
[395161869,1764496842629,500.0,0.00012521,2]
[395161870,1764496842696,500.0,0.00012521,2]
[395161871,1764496842746,500.0,0.00012521,2]
[395161872,1764496842789,500.0,0.00012521,2]
[395161873,1764496842832,500.0,0.00012521,2]
[395161874,1764496842875,500.0,0.00012521,2]
[395161875,1764496842940,341.29762296,0.00012521,2]
[395161876,1764496842987,500.0,0.00012521,2]
[395161877,1764496843046,500.0,0.00012521,2]
[395161878,1764496843093,500.0,0.00012521,2]
[395161879,1764496843157,500.0,0.00012521,2]
[395161880,1764496843205,500.0,0.00012521,2]
[395161881,1764496843249,158.72237704,0.00012521,2]
[395161882,1764496843279,341.27762296,0.00012521,2]
[395161883,1764496843326,500.0,0.00012521,2]
[395161884,1764496843407,500.0,0.00012521,2]
[395161885,1764496843462,500.0,0.00012521,2]
[395161886,1764496869489,-500.0,0.00012521,2]
[395161887,1764496869522,-500.0,0.00012521,2]
[395161888,1764496869554,-500.0,0.00012521,2]
[395161889,1764496869585,-500.0,0.00012521,2]
[395161890,1764496869617,-500.0,0.00012521,2]
[395161891,1764496869649,-500.0,0.00012521,2]
[395161892,1764496869684,-500.0,0.00012521,2]
[395161893,1764496869719,-500.0,0.00012521,2]
[395161894,1764496869750,-500.0,0.00012521,2]
[395161895,1764496869781,-500.0,0.00012521,2]
[395161896,1764496869900,-500.0,0.00012521,2]
[395161897,1764496869934,-500.0,0.00012521,2]
[395161898,1764496869969,-500.0,0.00012521,2]
[395161899,1764496870001,-500.0,0.00012521,2]
[395161900,1764496870033,-500.0,0.00012521,2]
[395161901,1764496870067,-500.0,0.00012521,2]
[395161902,1764496870099,-488.09365823,0.00012521,2]
[395161903,1764496870132,-500.0,0.00012521,2]
[395161904,1764496870164,-500.0,0.00012521,2]
[395161905,1764496870198,-500.0,0.00012521,2]
[395161906,1764496870271,-500.0,0.00012521,2]
[395161907,1764496872107,6266.11074102,0.00012516,2]
[395161908,1764496921227,300.0,0.00012521,2]
[395161909,1764496925010,295.8306,0.00012515,2]
[395161910,1764496973267,1200.0,0.00012521,2]
[395161911,1764496981851,150.0,0.00012521,2]
[395161912,1764496986411,788.06865898,0.00012516,2]
[395161913,1764496986437,2623.75374102,0.00012516,2]
[395161914,1764496992398,7376.25625898,0.00012516,2]
[395161915,1764496992421,10000.01,0.00012516,2]
[395161916,1764496993011,5455.62314102,0.00012516,2]
[395161917,1764496997966,500.0,0.00012521,2]
[395161918,1764496998028,500.0,0.00012521,2]
[395161919,1764496998087,500.0,0.00012521,2]
[395161920,1764496998131,500.0,0.00012521,2]
[395161921,1764496998175,500.0,0.00012521,2]
[395161922,1764496998235,500.0,0.00012521,2]
[395161923,1764496998297,393.65483571,0.00012521,2]
[395161924,1764497051417,-300.0,0.00012521,2]
[395161926,1764497068353,-250.0,0.00012522,2]
[395161927,1764497086372,-151.0,0.00012522,2]
[395161928,1764497096603,306.68883536,0.00012516,2]
[395161929,1764497101342,300.0,0.00012521,2]
[395161930,1764497101383,1200.0,0.00012521,2]
[395161931,1764497113504,2453.02,0.00012163,2]
[395161932,1764497116822,1197.38,0.00025,120]
[395161933,1764497117096,151.0,0.00012522,2]
[395161934,1764497129828,997.25,0.00025,120]
[395161935,1764497136359,7395.99,0.00012516,2]
[395161936,1764497136384,10000.01,0.00012516,2]
[395161937,1764497136409,10000.01,0.00012516,2]
[395161938,1764497136435,10000.01,0.00012516,2]
[395161939,1764497136459,10000.01,0.00012516,2]
[395161940,1764497136484,10000.01,0.00012516,2]
[395161941,1764497136507,10000.01,0.00012516,2]
[395161942,1764497136532,10000.01,0.00012516,2]
[395161943,1764497136556,10000.01,0.00012516,2]
[395161944,1764497136581,10000.01,0.00012516,2]
[395161945,1764497137646,897.18,0.00025,120]
[395161946,1764497148031,897.18,0.00025,120]
[395161947,1764497153579,-2310.89,0.00012163,2]
[395161948,1764497153759,-4621.78,0.00012163,2]
[395161949,1764497154482,-756.45,0.00012163,2]
[395161950,1764497165062,-150.0,0.00012515,2]
[395161952,1764497188428,-8633.95291369,0.00012516,2]
[395161953,1764497188768,-10000.01,0.00012516,2]
[395161954,1764497188936,-10000.01,0.00012516,2]
[395161955,1764497189099,-10000.01,0.00012516,2]
[395161963,1764497371841,-1500.0,0.00012163,2]
[395161964,1764497371872,-305.2613482,0.00012416,2]
[395161965,1764497371901,-151.0,0.00012513,2]
[395161966,1764497371931,-150.0,0.00012513,2]
[395161967,1764497371960,-515.12413445,0.00012515,2]
[395161968,1764497371986,-217.04106397,0.00012515,2]
[395161969,1764497372017,-377.07275952,0.00012515,2]
[395161970,1764497372044,-288.0,0.00012515,2]
[395161971,1764497372070,-300.0,0.00012515,2]
[395161972,1764497372097,-150.0,0.00012515,2]
[395161973,1764497372363,-2093.01138772,0.00012516,2]
[395161974,1764497377589,-10000.01,0.00012516,2]
[395161975,1764497380293,500.0,0.00011757,2]
[395161984,1764497431888,-1200.0,0.00012415,2]
[395161985,1764497431898,-3554.18610192,0.00012416,2]
[395161986,1764497431941,-1373.17428267,0.00012416,2]
[395161987,1764497431953,-1594.4736441,0.00012416,2]
[395161988,1764497431964,-1734.15843032,0.00012416,2]
[395161989,1764497431974,-250.0,0.00012466,2]
[395161990,1764497431983,-300.0,0.00012515,2]
[395161991,1764497431992,-69742.0985004,0.00012516,2]
[395161992,1764497432030,-5323.1954991,0.00012516,2]
[395161993,1764497432041,-2316.0,0.00012516,2]
[395161994,1764497432053,-2085.05231992,0.00012516,2]
[395161995,1764497432064,-382.35999,0.00012516,2]
[395161996,1764497432075,-329.24117934,0.00012516,2]
[395161997,1764497432087,-1117.90565889,0.00012516,2]
[395162003,1764497438094,-1360.25058712,0.00012516,2]
[395162004,1764497438107,-574.203953,0.00012516,2]
[395162005,1764497438176,-2280.77289118,0.00012516,2]
[395162006,1764497438202,-2284.34190002,0.00012516,2]
[395162007,1764497438308,-3357.83562371,0.00012516,2]
[395162012,1764497440086,-756.76,0.00012516,2]
[395162013,1764497440192,-346.89729276,0.00012516,2]
[395162044,1764497555073,-300.0,0.00012163,2]
[395162045,1764497555101,-150.0,0.00012163,2]
[395162046,1764497555130,-500.0,0.00012164,2]
[395162047,1764497555157,-500.0,0.00012164,2]
[395162048,1764497555183,-500.0,0.00012164,2]
[395162049,1764497555210,-500.0,0.00012164,2]
[395162050,1764497555240,-500.0,0.00012164,2]
[395162051,1764497555271,-500.0,0.00012164,2]
[395162052,1764497555299,-500.0,0.00012164,2]
[395162053,1764497555326,-500.0,0.00012164,2]
[395162054,1764497555353,-500.0,0.00012164,2]
[395162055,1764497555611,-100.01,0.00012164,2]
[395162056,1764497556514,180.0,0.000145,4]
[395162057,1764497567667,-399.99,0.00012164,2]
[395162058,1764497567695,-500.0,0.00012164,2]
[395162059,1764497567724,-500.0,0.00012164,2]
[395162060,1764497567758,-500.0,0.00012164,2]
[395162061,1764497567785,-500.0,0.00012164,2]
[395162062,1764497567813,-500.0,0.00012164,2]
[395162063,1764497567841,-500.0,0.00012164,2]
[395162064,1764497567870,-500.0,0.00012164,2]
[395162065,1764497567899,-500.0,0.00012164,2]
[395162066,1764497567927,-500.0,0.00012164,2]
[395162067,1764497568151,-200.03,0.00012164,2]
[395162068,1764497598425,500.0,0.00024999,120]
[395162069,1764497664630,903.55,5.886e-05,2]
[395162070,1764497665040,903.55,6.196e-05,2]
[395162071,1764497665469,903.55,6.506e-05,2]
[395162072,1764497665684,903.55,6.815e-05,2]
[395162073,1764497665873,903.55,7.125e-05,2]
[395162074,1764497666052,903.55,7.435e-05,2]
[395162075,1764497666255,903.55,7.745e-05,2]
[395162076,1764497666451,903.55,8.054e-05,2]
[395162077,1764497666649,903.55,8.364e-05,2]
[395162078,1764497666844,903.55,8.674e-05,2]
[395162079,1764497667045,903.55,8.984e-05,2]
[395162080,1764497667239,60.96,9.294e-05,2]
[395162081,1764497667263,842.59,9.294e-05,2]
[395162082,1764497667436,903.55,9.603e-05,2]
[395162083,1764497667639,903.55,9.913e-05,2]
[395162084,1764497667837,903.55,0.00010223,2]
[395162085,1764497668022,903.55,0.00010533,2]
[395162086,1764497668223,903.55,0.00010842,2]
[395162087,1764497668410,903.55,0.00011152,2]
[395162088,1764497668604,903.55,0.00011462,2]
[395162089,1764497668833,903.55,0.00011772,2]
[395162090,1764497689972,5809.905951,0.00012102,2]
[395162091,1764497714292,171.98905064,0.00012064,2]
[395162092,1764497726750,227.07,0.0001173,2]
[395162093,1764497767609,195.06672,7.945e-05,2]
[395162098,1764497870663,8485.09,0.00011659,2]
[395162099,1764497888448,3253.75761953,7.945e-05,2]
[395162100,1764497888470,758.79819147,7.945e-05,2]
[395162101,1764497997328,166.66,0.00012096,2]
[395162102,1764498027026,171.98905064,0.00012064,2]
[395162103,1764498082523,1852.42,0.00011626,2]
[395162104,1764498195833,500.0,0.00024999,120]
[395162108,1764498223491,250.0,0.00012036,2]
[395162109,1764498319931,3181.33245927,9e-05,2]
[395162130,1764498507077,-1200.0,0.00012163,2]
[395162131,1764498507106,-300.0,0.00012163,2]
[395162132,1764498507135,-150.0,0.00012163,2]
[395162133,1764498507164,-250.0,0.00012163,2]
[395162134,1764498507193,-299.97,0.00012164,2]
[395162135,1764498507222,-500.0,0.00012164,2]
[395162136,1764498507249,-500.0,0.00012164,2]
[395162137,1764498507277,-500.0,0.00012164,2]
[395162138,1764498507304,-500.0,0.00012164,2]
[395162139,1764498507334,-500.0,0.00012164,2]
[395162140,1764498507361,-100.07,0.00012164,2]
[395162143,1764498508390,-181.40564196,0.00012164,2]
[395162148,1764498513173,-218.52435804,0.00012164,2]
[395162149,1764498513195,-339.66711253,0.00012164,2]
[395162150,1764498513290,-160.33288747,0.00012164,2]
[395162151,1764498513318,-500.0,0.00012164,2]
[395162152,1764498513346,-500.0,0.00012164,2]
[395162153,1764498513376,-500.0,0.00012164,2]
[395162154,1764498513405,-500.0,0.00012164,2]
[395162155,1764498513432,-500.0,0.00012164,2]
[395162156,1764498513458,-500.0,0.00012164,2]
[395162157,1764498513487,-1052.91,0.00012164,2]
[395162158,1764498513514,-578.20924308,0.00012306,2]
[395162162,1764498513611,-2030.01283715,0.00012308,2]
[395162164,1764498513656,-4060.0256743,0.00012308,2]
[395162176,1764498514140,-1879.9586514,0.00012308,2]
[395162202,1764498515026,1202.94942806,0.00012,2]
[395162203,1764498515048,75.09595229,0.00012,2]
[395162207,1764498515143,-260.19658991,0.00012308,2]
[395162224,1764498516273,-500.0,0.00012308,2]
[395162225,1764498517861,-578.62882631,0.00012308,2]
[395162226,1764498518705,260.19659,0.00012103,2]
[395162227,1764498520078,-2896.88346146,0.00012308,2]
[395162228,1764498520248,-4206.24307708,0.00012308,2]
[395162229,1764498520276,-533.88194831,0.00012308,2]
[395162230,1764498520308,-200.7170109,0.00012308,2]